[Event "Titled Tuesday Blitz June 20 Early 2023"]
[White "Siniauski, Artsiom"]
[Black "Vachier-Lagrave, Maxime"]
[WhiteFideId "13512269"]
[BlackFideId "623539"]
[WhiteElo "2065"]
[BlackElo "2739"]
[Result "0-1"]
[Round "1"]
[TimeControl "180+2"]
[Date "2023.06.20"]
[WhiteClock "0:00:01"]
[BlackClock "0:00:15"]
[Board "4"]

1. e4 {[%clk 0:02:58]}  c6 {[%clk 0:02:58]} 2. d4 {[%clk 0:02:40]}  d5 {[%clk 0:02:56]} 3. e5 {[%clk 0:02:40]}  Bf5 {[%clk 0:02:53]} 4. h4 {[%clk 0:02:40]}  h5 {[%clk 0:02:52]} 5. c4 {[%clk 0:02:40]}  e6 {[%clk 0:02:51]} 6. Nc3 {[%clk 0:02:40]}  Ne7 {[%clk 0:02:50]} 7. Nge2 {[%clk 0:02:39]}  dxc4 {[%clk 0:02:48]} 8. Ng3 {[%clk 0:02:39]}  Bg6 {[%clk 0:02:48]} 9. Bxc4 {[%clk 0:02:38]}  Nd7 {[%clk 0:02:44]} 10. Bg5 {[%clk 0:02:38]}  Qa5 {[%clk 0:02:42]} 11. O-O {[%clk 0:02:30]}  Nb6 {[%clk 0:02:39]} 12. Be2 {[%clk 0:02:22]}  Ned5 {[%clk 0:02:36]} 13. Nce4 {[%clk 0:02:11]}  Nd7 {[%clk 0:02:08]} 14. Re1 {[%clk 0:01:50]}  f6 {[%clk 0:01:53]} 15. exf6 {[%clk 0:01:35]}  gxf6 {[%clk 0:01:54]} 16. Bd2 {[%clk 0:01:36]}  Qb6 {[%clk 0:01:52]} 17. Bxh5 {[%clk 0:01:22]}  Bxh5 {[%clk 0:01:51]} 18. Nxh5 {[%clk 0:01:23]}  Qxd4 {[%clk 0:01:48]} 19. Qg4 {[%clk 0:01:10]}  O-O-O {[%clk 0:01:11]} 20. Nd6+ {[%clk 0:01:07]}  Bxd6 {[%clk 0:01:12]} 21. Qxd4 {[%clk 0:01:08]}  Rxh5 {[%clk 0:01:13]} 22. Rxe6 {[%clk 0:00:46]}  Be5 {[%clk 0:01:09]} 23. Qxa7 {[%clk 0:00:15]}  Rxh4 {[%clk 0:01:06]} 24. Rc1 {[%clk 0:00:14]}  Rdh8 {[%clk 0:01:02]} 25. Rcxc6+ {[%clk 0:00:07]}  bxc6 {[%clk 0:00:59]} 26. Rxc6+ {[%clk 0:00:08]}  Kd8 {[%clk 0:00:57]} 27. Kf1 {[%clk 0:00:08]}  Re4 {[%clk 0:00:45]} 28. g3 {[%clk 0:00:09]}  Rh1+ {[%clk 0:00:34]} 29. Kg2 {[%clk 0:00:09]}  Rd1 {[%clk 0:00:35]} 30. Ba5+ {[%clk 0:00:09]}  Ke7 {[%clk 0:00:35]} 31. Qb7 {[%clk 0:00:05]}  Re2 {[%clk 0:00:31]} 32. Rc4 {[%clk 0:00:05]}  Rxb2 {[%clk 0:00:24]} 33. Qc6 {[%clk 0:00:04]}  Ne3+ {[%clk 0:00:24]} 34. Kf3 {[%clk 0:00:05]}  Nxc4 {[%clk 0:00:25]} 35. Qxc4 {[%clk 0:00:05]}  Rd4 {[%clk 0:00:19]} 36. Qc1 {[%clk 0:00:04]}  Rxa2 {[%clk 0:00:18]} 37. Bc3 {[%clk 0:00:04]}  Rd3+ {[%clk 0:00:19]} 38. Ke4 {[%clk 0:00:04]}  Rxc3 {[%clk 0:00:19]} 39. Qh6 {[%clk 0:00:04]}  Rxf2 {[%clk 0:00:16]} 40. Qh7+ {[%clk 0:00:03]}  Kd6 {[%clk 0:00:15]} 41. g4 {[%clk 0:00:01]}  Nc5# {[%clk 0:00:15]} 0-1


[Site "https://www.chess.com"]

[Event "Titled Tuesday Blitz June 20 Early 2023"]
[White "Kollars, Dmitrij"]
[Black "brm72"]
[WhiteFideId "12909572"]
[WhiteElo "2584"]
[BlackElo "2521"]
[Result "0-1"]
[Round "1"]
[TimeControl "180+2"]
[Date "2023.06.20"]
[WhiteClock "0:00:04"]
[BlackClock "0:00:16"]
[Board "5"]

1. e4 {[%clk 0:02:59]}  c6 {[%clk 0:02:59]} 2. d3 {[%clk 0:02:58]}  d5 {[%clk 0:03:00]} 3. Nf3 {[%clk 0:02:59]}  Bg4 {[%clk 0:02:52]} 4. h3 {[%clk 0:02:58]}  Bh5 {[%clk 0:02:52]} 5. g4 {[%clk 0:02:57]}  Bg6 {[%clk 0:02:52]} 6. h4 {[%clk 0:02:57]}  h6 {[%clk 0:02:41]} 7. h5 {[%clk 0:02:45]}  Bh7 {[%clk 0:02:40]} 8. g5 {[%clk 0:02:43]}  dxe4 {[%clk 0:02:31]} 9. g6 {[%clk 0:02:38]}  fxg6 {[%clk 0:02:29]} 10. hxg6 {[%clk 0:02:34]}  Bxg6 {[%clk 0:02:18]} 11. Nh4 {[%clk 0:02:26]}  Bf7 {[%clk 0:02:12]} 12. Nc3 {[%clk 0:02:26]}  Nf6 {[%clk 0:02:08]} 13. Be3 {[%clk 0:02:17]}  e5 {[%clk 0:02:03]} 14. Qd2 {[%clk 0:02:05]}  Nbd7 {[%clk 0:01:55]} 15. O-O-O {[%clk 0:02:03]}  Qa5 {[%clk 0:01:35]} 16. dxe4 {[%clk 0:01:34]}  O-O-O {[%clk 0:01:17]} 17. Bd3 {[%clk 0:01:34]}  Bb4 {[%clk 0:01:13]} 18. Qe1 {[%clk 0:01:17]}  Bxa2 {[%clk 0:01:07]} 19. Kd2 {[%clk 0:01:07]}  Nxe4+ {[%clk 0:00:39]} 20. Bxe4 {[%clk 0:00:58]}  Nf6+ {[%clk 0:00:37]} 21. Bd3 {[%clk 0:00:42]}  e4 {[%clk 0:00:36]} 22. Ke2 {[%clk 0:00:43]}  exd3+ {[%clk 0:00:35]} 23. cxd3 {[%clk 0:00:44]}  Bb3 {[%clk 0:00:30]} 24. Ra1 {[%clk 0:00:43]}  Qh5+ {[%clk 0:00:29]} 25. Nf3 {[%clk 0:00:38]}  Qf5 {[%clk 0:00:26]} 26. Qb1 {[%clk 0:00:29]}  Rhe8 {[%clk 0:00:20]} 27. Rxa7 {[%clk 0:00:28]}  Ng4 {[%clk 0:00:20]} 28. d4 {[%clk 0:00:22]}  Bc2 {[%clk 0:00:17]} 29. Qa1 {[%clk 0:00:07]}  Qd3+ {[%clk 0:00:17]} 30. Ke1 {[%clk 0:00:07]}  Rxe3+ {[%clk 0:00:15]} 31. fxe3 {[%clk 0:00:04]}  Qxe3+ {[%clk 0:00:15]} 32. Kf1 {[%clk 0:00:04]}  Qf2# {[%clk 0:00:16]} 0-1


[Site "https://www.chess.com"]

[Event "Titled Tuesday Blitz June 20 Early 2023"]
[White "chess123456s"]
[Black "Kramnik, Vladimir"]
[BlackFideId "4101588"]
[WhiteElo "2521"]
[BlackElo "2703"]
[Result "1-0"]
[Round "1"]
[TimeControl "180+2"]
[Date "2023.06.20"]
[WhiteClock "0:00:22"]
[BlackClock "0:00:01"]
[Board "6"]

1. e4 {[%clk 0:02:58]}  c5 {[%clk 0:03:00]} 2. Nf3 {[%clk 0:02:58]}  e6 {[%clk 0:03:00]} 3. g3 {[%clk 0:02:57]}  Nc6 {[%clk 0:02:59]} 4. Bg2 {[%clk 0:02:57]}  Nf6 {[%clk 0:03:00]} 5. Nc3 {[%clk 0:02:57]}  Be7 {[%clk 0:02:58]} 6. O-O {[%clk 0:02:52]}  d6 {[%clk 0:02:58]} 7. d3 {[%clk 0:02:47]}  O-O {[%clk 0:02:56]} 8. Ng5 {[%clk 0:02:48]}  Nd7 {[%clk 0:02:43]} 9. f4 {[%clk 0:02:38]}  Bxg5 {[%clk 0:02:40]} 10. fxg5 {[%clk 0:02:38]}  Nde5 {[%clk 0:02:39]} 11. Be3 {[%clk 0:02:34]}  b6 {[%clk 0:02:32]} 12. Qd2 {[%clk 0:02:30]}  Ba6 {[%clk 0:02:28]} 13. Rf4 {[%clk 0:02:27]}  Rc8 {[%clk 0:02:14]} 14. Raf1 {[%clk 0:02:24]}  Nd4 {[%clk 0:02:09]} 15. Ne2 {[%clk 0:02:09]}  Nxc2 {[%clk 0:01:53]} 16. Qxc2 {[%clk 0:02:01]}  Nxd3 {[%clk 0:01:51]} 17. R4f3 {[%clk 0:01:46]}  Ne5 {[%clk 0:01:50]} 18. R3f2 {[%clk 0:01:37]}  Ng4 {[%clk 0:01:46]} 19. Rf3 {[%clk 0:01:37]}  Nxe3 {[%clk 0:01:46]} 20. Rxe3 {[%clk 0:01:38]}  Qxg5 {[%clk 0:01:46]} 21. Ref3 {[%clk 0:01:38]}  Qe7 {[%clk 0:01:42]} 22. R1f2 {[%clk 0:01:34]}  Bxe2 {[%clk 0:01:36]} 23. Qxe2 {[%clk 0:01:32]}  c4 {[%clk 0:01:36]} 24. Rf4 {[%clk 0:01:26]}  Rc5 {[%clk 0:01:33]} 25. Qg4 {[%clk 0:01:24]}  b5 {[%clk 0:01:29]} 26. Bh3 {[%clk 0:01:13]}  Re5 {[%clk 0:01:21]} 27. Qd1 {[%clk 0:00:47]}  h5 {[%clk 0:01:13]} 28. Bg2 {[%clk 0:00:45]}  b4 {[%clk 0:01:03]} 29. Qd4 {[%clk 0:00:44]}  Rc5 {[%clk 0:00:54]} 30. Qd1 {[%clk 0:00:38]}  a5 {[%clk 0:00:52]} 31. Bf3 {[%clk 0:00:37]}  g6 {[%clk 0:00:47]} 32. Be2 {[%clk 0:00:32]}  c3 {[%clk 0:00:42]} 33. bxc3 {[%clk 0:00:31]}  Rxc3 {[%clk 0:00:39]} 34. Bxh5 {[%clk 0:00:28]}  Qc7 {[%clk 0:00:17]} 35. Qe2 {[%clk 0:00:20]}  Rc1+ {[%clk 0:00:14]} 36. Kg2 {[%clk 0:00:20]}  Qc4 {[%clk 0:00:05]} 37. Qxc4 {[%clk 0:00:17]}  Rxc4 {[%clk 0:00:05]} 38. Bxg6 {[%clk 0:00:17]}  Rc7 {[%clk 0:00:06]} 39. Bh5 {[%clk 0:00:15]}  Kg7 {[%clk 0:00:06]} 40. Bg4 {[%clk 0:00:14]}  Rb8 {[%clk 0:00:05]} 41. Bh5 {[%clk 0:00:14]}  a4 {[%clk 0:00:05]} 42. Rxf7+ {[%clk 0:00:13]}  Rxf7 {[%clk 0:00:05]} 43. Rxf7+ {[%clk 0:00:14]}  Kh6 {[%clk 0:00:06]} 44. Bd1 {[%clk 0:00:14]}  b3 {[%clk 0:00:06]} 45. axb3 {[%clk 0:00:15]}  axb3 {[%clk 0:00:06]} 46. Bxb3 {[%clk 0:00:16]}  Rxb3 {[%clk 0:00:06]} 47. Rf6+ {[%clk 0:00:17]}  Kg7 {[%clk 0:00:06]} 48. Rxe6 {[%clk 0:00:17]}  Rb2+ {[%clk 0:00:07]} 49. Kf3 {[%clk 0:00:18]}  Rd2 {[%clk 0:00:07]} 50. h4 {[%clk 0:00:17]}  Kf7 {[%clk 0:00:08]} 51. Rh6 {[%clk 0:00:17]}  Kg7 {[%clk 0:00:08]} 52. Rh5 {[%clk 0:00:17]}  Rd3+ {[%clk 0:00:07]} 53. Kf4 {[%clk 0:00:18]}  Rd1 {[%clk 0:00:06]} 54. Rd5 {[%clk 0:00:18]}  Rf1+ {[%clk 0:00:06]} 55. Kg4 {[%clk 0:00:18]}  Rf6 {[%clk 0:00:07]} 56. Rg5+ {[%clk 0:00:18]}  Kh6 {[%clk 0:00:07]} 57. Rf5 {[%clk 0:00:18]}  Re6 {[%clk 0:00:07]} 58. Kf4 {[%clk 0:00:19]}  Kg6 {[%clk 0:00:07]} 59. g4 {[%clk 0:00:19]}  Re8 {[%clk 0:00:07]} 60. h5+ {[%clk 0:00:20]}  Kg7 {[%clk 0:00:06]} 61. Rd5 {[%clk 0:00:20]}  Rf8+ {[%clk 0:00:06]} 62. Ke3 {[%clk 0:00:20]}  Rf6 {[%clk 0:00:06]} 63. g5 {[%clk 0:00:21]}  Re6 {[%clk 0:00:06]} 64. Kf4 {[%clk 0:00:21]}  Kh7 {[%clk 0:00:06]} 65. Kf5 {[%clk 0:00:22]}  Re7 {[%clk 0:00:06]} 66. Rxd6 {[%clk 0:00:22]}  Ra7 {[%clk 0:00:01]} 67. e5 {[%clk 0:00:22]} 1-0


[Site "https://www.chess.com"]

[Event "Titled Tuesday Blitz June 20 Early 2023"]
[White "Martinez Alcantara, Jose Eduardo"]
[Black "iAspet"]
[WhiteFideId "3805662"]
[WhiteElo "2711"]
[BlackElo "2521"]
[Result "1-0"]
[Round "1"]
[TimeControl "180+2"]
[Date "2023.06.20"]
[WhiteClock "0:01:12"]
[BlackClock "0:00:07"]
[Board "7"]

1. e4 {[%clk 0:03:00]}  c5 {[%clk 0:02:58]} 2. Nf3 {[%clk 0:03:01]}  d6 {[%clk 0:02:58]} 3. c3 {[%clk 0:03:01]}  Nf6 {[%clk 0:02:56]} 4. h3 {[%clk 0:03:01]}  Nc6 {[%clk 0:02:55]} 5. Bd3 {[%clk 0:03:01]}  g6 {[%clk 0:02:52]} 6. Bc2 {[%clk 0:03:01]}  Bg7 {[%clk 0:02:53]} 7. d4 {[%clk 0:03:01]}  O-O {[%clk 0:02:49]} 8. dxc5 {[%clk 0:03:00]}  dxc5 {[%clk 0:02:49]} 9. Qe2 {[%clk 0:03:00]}  Nd7 {[%clk 0:02:39]} 10. Be3 {[%clk 0:02:57]}  b6 {[%clk 0:02:39]} 11. Nbd2 {[%clk 0:02:56]}  Bb7 {[%clk 0:02:40]} 12. O-O {[%clk 0:02:56]}  Qc7 {[%clk 0:02:40]} 13. a4 {[%clk 0:02:54]}  a6 {[%clk 0:02:40]} 14. Rfd1 {[%clk 0:02:52]}  Rfd8 {[%clk 0:02:38]} 15. Bg5 {[%clk 0:02:46]}  Nde5 {[%clk 0:02:28]} 16. Qe3 {[%clk 0:02:42]}  Na5 {[%clk 0:02:16]} 17. Nxe5 {[%clk 0:02:39]}  Bxe5 {[%clk 0:02:16]} 18. Nf3 {[%clk 0:02:29]}  Bg7 {[%clk 0:02:16]} 19. Bf4 {[%clk 0:02:25]}  Qc6 {[%clk 0:02:04]} 20. Qe2 {[%clk 0:02:22]}  Qe6 {[%clk 0:01:59]} 21. Rxd8+ {[%clk 0:02:09]}  Rxd8 {[%clk 0:01:59]} 22. Rd1 {[%clk 0:02:10]}  Rxd1+ {[%clk 0:01:44]} 23. Qxd1 {[%clk 0:02:11]}  h6 {[%clk 0:01:35]} 24. Qd8+ {[%clk 0:01:55]}  Kh7 {[%clk 0:01:34]} 25. Nd2 {[%clk 0:01:47]}  c4 {[%clk 0:00:50]} 26. Be3 {[%clk 0:01:41]}  Nb3 {[%clk 0:00:51]} 27. Bxb3 {[%clk 0:01:30]}  cxb3 {[%clk 0:00:50]} 28. Qxb6 {[%clk 0:01:31]}  Qd7 {[%clk 0:00:43]} 29. Qxb3 {[%clk 0:01:29]}  Bc6 {[%clk 0:00:43]} 30. Qxf7 {[%clk 0:01:28]}  Bxa4 {[%clk 0:00:40]} 31. Nf3 {[%clk 0:01:13]}  Qd1+ {[%clk 0:00:20]} 32. Kh2 {[%clk 0:01:13]}  Bc6 {[%clk 0:00:18]} 33. Bd4 {[%clk 0:01:12]}  e5 {[%clk 0:00:09]} 34. Bxe5 {[%clk 0:01:12]}  Qd7 {[%clk 0:00:08]} 35. Qxd7 {[%clk 0:01:12]}  Bxd7 {[%clk 0:00:08]} 36. Bxg7 {[%clk 0:01:12]}  Kxg7 {[%clk 0:00:09]} 37. Nd4 {[%clk 0:01:11]}  Kf6 {[%clk 0:00:09]} 38. f4 {[%clk 0:01:11]}  g5 {[%clk 0:00:07]} 39. e5+ {[%clk 0:01:12]} 1-0


[Site "https://www.chess.com"]

[Event "Titled Tuesday Blitz June 20 Early 2023"]
[White "Lazavik, Denis"]
[Black "Zaragatski, Ilja"]
[WhiteFideId "13515110"]
[BlackFideId "4655192"]
[WhiteElo "2560"]
[BlackElo "2460"]
[Result "1-0"]
[Round "1"]
[TimeControl "180+2"]
[Date "2023.06.20"]
[WhiteClock "0:00:10"]
[BlackClock "0:00:00"]
[Board "9"]

1. d4 {[%clk 0:03:00]}  Nf6 {[%clk 0:02:57]} 2. c4 {[%clk 0:03:01]}  c5 {[%clk 0:02:58]} 3. d5 {[%clk 0:03:01]}  b5 {[%clk 0:02:58]} 4. cxb5 {[%clk 0:03:01]}  a6 {[%clk 0:02:58]} 5. e3 {[%clk 0:03:01]}  axb5 {[%clk 0:02:57]} 6. Bxb5 {[%clk 0:03:01]}  Qa5+ {[%clk 0:02:58]} 7. Nc3 {[%clk 0:02:58]}  Bb7 {[%clk 0:02:58]} 8. Bd2 {[%clk 0:02:37]}  Qb6 {[%clk 0:02:56]} 9. a4 {[%clk 0:02:38]}  Nxd5 {[%clk 0:02:55]} 10. Nf3 {[%clk 0:02:38]}  e6 {[%clk 0:02:54]} 11. O-O {[%clk 0:02:38]}  Be7 {[%clk 0:02:54]} 12. e4 {[%clk 0:02:38]}  Nb4 {[%clk 0:02:53]} 13. Bf4 {[%clk 0:02:37]}  O-O {[%clk 0:02:50]} 14. Bxb8 {[%clk 0:02:36]}  Rfxb8 {[%clk 0:02:47]} 15. Qxd7 {[%clk 0:02:35]}  Qd8 {[%clk 0:02:20]} 16. Rfd1 {[%clk 0:02:20]}  Qxd7 {[%clk 0:02:11]} 17. Rxd7 {[%clk 0:02:18]}  Bf6 {[%clk 0:02:11]} 18. Rad1 {[%clk 0:02:08]}  g6 {[%clk 0:02:00]} 19. e5 {[%clk 0:01:55]}  Bxf3 {[%clk 0:01:52]} 20. gxf3 {[%clk 0:01:53]}  Bxe5 {[%clk 0:01:52]} 21. Ne4 {[%clk 0:01:50]}  Bd4 {[%clk 0:01:48]} 22. Ng5 {[%clk 0:01:38]}  Rd8 {[%clk 0:01:43]} 23. b3 {[%clk 0:01:23]}  Rxd7 {[%clk 0:01:42]} 24. Bxd7 {[%clk 0:01:24]}  Nd5 {[%clk 0:01:30]} 25. Kf1 {[%clk 0:00:59]}  Rb8 {[%clk 0:01:22]} 26. a5 {[%clk 0:00:25]}  Rxb3 {[%clk 0:01:17]} 27. Nxe6 {[%clk 0:00:25]}  fxe6 {[%clk 0:01:01]} 28. Bxe6+ {[%clk 0:00:25]}  Kg7 {[%clk 0:01:02]} 29. Bxd5 {[%clk 0:00:26]}  Ra3 {[%clk 0:01:02]} 30. Rb1 {[%clk 0:00:26]}  Rxa5 {[%clk 0:01:01]} 31. Rb7+ {[%clk 0:00:26]}  Kf6 {[%clk 0:00:59]} 32. f4 {[%clk 0:00:25]}  Kf5 {[%clk 0:00:49]} 33. Rf7+ {[%clk 0:00:25]}  Kg4 {[%clk 0:00:48]} 34. Kg2 {[%clk 0:00:19]}  h6 {[%clk 0:00:27]} 35. Be6+ {[%clk 0:00:16]}  Kh4 {[%clk 0:00:26]} 36. Rh7 {[%clk 0:00:17]}  h5 {[%clk 0:00:25]} 37. Rh6 {[%clk 0:00:15]}  Rb5 {[%clk 0:00:23]} 38. Rxg6 {[%clk 0:00:12]}  Rb2 {[%clk 0:00:23]} 39. Kf3 {[%clk 0:00:08]}  Rxf2+ {[%clk 0:00:22]} 40. Ke4 {[%clk 0:00:09]}  Rxh2 {[%clk 0:00:21]} 41. f5 {[%clk 0:00:09]}  Re2+ {[%clk 0:00:21]} 42. Kd5 {[%clk 0:00:09]}  Rf2 {[%clk 0:00:18]} 43. Kd6 {[%clk 0:00:07]}  Kh3 {[%clk 0:00:18]} 44. f6+ {[%clk 0:00:07]}  Kh2 {[%clk 0:00:18]} 45. f7 {[%clk 0:00:08]}  h4 {[%clk 0:00:17]} 46. Rg8 {[%clk 0:00:08]}  h3 {[%clk 0:00:04]} 47. f8=Q {[%clk 0:00:08]}  Rxf8 {[%clk 0:00:04]} 48. Rxf8 {[%clk 0:00:09]}  Kg2 {[%clk 0:00:03]} 49. Rg8+ {[%clk 0:00:09]}  Kh2 {[%clk 0:00:00]} 50. Kd5 {[%clk 0:00:10]} 1-0


[Site "https://www.chess.com"]

[Event "Titled Tuesday Blitz June 20 Early 2023"]
[White "Di Nicolantonio, Lucas"]
[Black "Bluebaum, Matthias"]
[WhiteFideId "680460"]
[BlackFideId "24651516"]
[WhiteElo "2358"]
[BlackElo "2639"]
[Result "0-1"]
[Round "1"]
[TimeControl "180+2"]
[Date "2023.06.20"]
[WhiteClock "0:01:48"]
[BlackClock "0:02:26"]
[Board "10"]

1. Nf3 {[%clk 0:02:56]}  d5 {[%clk 0:02:59]} 2. e3 {[%clk 0:02:55]}  Nf6 {[%clk 0:02:58]} 3. c4 {[%clk 0:02:55]}  e6 {[%clk 0:02:59]} 4. Nc3 {[%clk 0:02:56]}  Bd6 {[%clk 0:02:59]} 5. d4 {[%clk 0:02:55]}  O-O {[%clk 0:02:59]} 6. Be2 {[%clk 0:02:53]}  dxc4 {[%clk 0:02:59]} 7. Bxc4 {[%clk 0:02:53]}  Nc6 {[%clk 0:03:00]} 8. O-O {[%clk 0:02:54]}  e5 {[%clk 0:03:00]} 9. dxe5 {[%clk 0:02:41]}  Nxe5 {[%clk 0:03:01]} 10. Be2 {[%clk 0:02:41]}  c6 {[%clk 0:02:56]} 11. h3 {[%clk 0:02:23]}  Nxf3+ {[%clk 0:02:50]} 12. Bxf3 {[%clk 0:02:23]}  Qe7 {[%clk 0:02:51]} 13. Qd4 {[%clk 0:02:02]}  Rd8 {[%clk 0:02:43]} 14. Qh4 {[%clk 0:02:02]}  Qe5 {[%clk 0:02:33]} 15. g3 {[%clk 0:02:01]}  g5 {[%clk 0:02:26]} 16. Qh6 {[%clk 0:01:48]}  Bf8 {[%clk 0:02:26]} 0-1


[Site "https://www.chess.com"]

[Event "Titled Tuesday Blitz June 20 Early 2023"]
[White "Grischuk, Alexander"]
[Black "MaryanKyrychenko"]
[WhiteFideId "4126025"]
[WhiteElo "2721"]
[BlackElo "2517"]
[Result "1-0"]
[Round "1"]
[TimeControl "180+2"]
[Date "2023.06.20"]
[WhiteClock "0:00:17"]
[BlackClock "0:00:32"]
[Board "11"]

1. Nf3 {[%clk 0:02:59]}  d5 {[%clk 0:03:00]} 2. g3 {[%clk 0:02:59]}  c5 {[%clk 0:02:56]} 3. Bg2 {[%clk 0:02:59]}  Nc6 {[%clk 0:02:56]} 4. d4 {[%clk 0:02:59]}  Nf6 {[%clk 0:02:54]} 5. O-O {[%clk 0:02:58]}  Bf5 {[%clk 0:02:52]} 6. c4 {[%clk 0:02:50]}  e6 {[%clk 0:02:48]} 7. cxd5 {[%clk 0:02:48]}  exd5 {[%clk 0:02:47]} 8. Nc3 {[%clk 0:02:48]}  h6 {[%clk 0:02:21]} 9. Be3 {[%clk 0:02:35]}  c4 {[%clk 0:02:17]} 10. Ne5 {[%clk 0:02:35]}  Be7 {[%clk 0:01:49]} 11. b3 {[%clk 0:02:35]}  Qa5 {[%clk 0:01:37]} 12. Bd2 {[%clk 0:02:01]}  Bb4 {[%clk 0:01:34]} 13. Qe1 {[%clk 0:01:38]}  Nxd4 {[%clk 0:01:28]} 14. a3 {[%clk 0:01:38]}  Nxb3 {[%clk 0:01:18]} 15. axb4 {[%clk 0:01:38]}  Qxa1 {[%clk 0:01:17]} 16. Qxa1 {[%clk 0:01:38]}  Nxa1 {[%clk 0:01:18]} 17. Rxa1 {[%clk 0:01:39]}  O-O {[%clk 0:01:17]} 18. Be3 {[%clk 0:00:57]}  Rfe8 {[%clk 0:01:02]} 19. Bd4 {[%clk 0:00:57]}  b6 {[%clk 0:00:55]} 20. e3 {[%clk 0:00:46]}  a5 {[%clk 0:00:51]} 21. Nxd5 {[%clk 0:00:38]}  axb4 {[%clk 0:00:47]} 22. Nxf6+ {[%clk 0:00:28]}  gxf6 {[%clk 0:00:46]} 23. Rxa8 {[%clk 0:00:29]}  Rxa8 {[%clk 0:00:46]} 24. Bxa8 {[%clk 0:00:30]}  fxe5 {[%clk 0:00:47]} 25. Bxe5 {[%clk 0:00:30]}  c3 {[%clk 0:00:40]} 26. f3 {[%clk 0:00:26]}  Bd3 {[%clk 0:00:39]} 27. Kf2 {[%clk 0:00:25]}  b5 {[%clk 0:00:36]} 28. e4 {[%clk 0:00:24]}  Kf8 {[%clk 0:00:35]} 29. Bd6+ {[%clk 0:00:19]}  Ke8 {[%clk 0:00:35]} 30. Bxb4 {[%clk 0:00:20]}  c2 {[%clk 0:00:36]} 31. Ba3 {[%clk 0:00:19]}  Kd7 {[%clk 0:00:36]} 32. Ke3 {[%clk 0:00:19]}  b4 {[%clk 0:00:36]} 33. Bb2 {[%clk 0:00:18]}  Bc4 {[%clk 0:00:36]} 34. Kd4 {[%clk 0:00:18]}  Be2 {[%clk 0:00:36]} 35. f4 {[%clk 0:00:17]}  Kd6 {[%clk 0:00:34]} 36. Bd5 {[%clk 0:00:16]}  f6 {[%clk 0:00:34]} 37. e5+ {[%clk 0:00:16]}  fxe5+ {[%clk 0:00:34]} 38. fxe5+ {[%clk 0:00:17]}  Ke7 {[%clk 0:00:32]} 39. Kc5 {[%clk 0:00:17]} 1-0


[Site "https://www.chess.com"]

[Event "Titled Tuesday Blitz June 20 Early 2023"]
[White "Pranav, V"]
[Black "Liu, Casper"]
[WhiteFideId "25060783"]
[BlackFideId "1454153"]
[WhiteElo "2533"]
[BlackElo "2221"]
[Result "1-0"]
[Round "1"]
[TimeControl "180+2"]
[Date "2023.06.20"]
[WhiteClock "0:01:10"]
[BlackClock "0:01:30"]
[Board "13"]

1. c4 {[%clk 0:02:58]}  Nc6 {[%clk 0:02:38]} 2. Nc3 {[%clk 0:02:57]}  e5 {[%clk 0:02:38]} 3. g3 {[%clk 0:02:57]}  f5 {[%clk 0:02:39]} 4. Bg2 {[%clk 0:02:57]}  Nf6 {[%clk 0:02:40]} 5. d3 {[%clk 0:02:58]}  Bc5 {[%clk 0:02:40]} 6. Nf3 {[%clk 0:02:57]}  O-O {[%clk 0:02:40]} 7. O-O {[%clk 0:02:57]}  d6 {[%clk 0:02:41]} 8. a3 {[%clk 0:02:58]}  a5 {[%clk 0:02:41]} 9. Rb1 {[%clk 0:02:58]}  Qe8 {[%clk 0:02:41]} 10. Na4 {[%clk 0:02:57]}  Qh5 {[%clk 0:02:38]} 11. e3 {[%clk 0:02:55]}  f4 {[%clk 0:02:38]} 12. Nxc5 {[%clk 0:02:17]}  dxc5 {[%clk 0:02:37]} 13. exf4 {[%clk 0:02:18]}  Bh3 {[%clk 0:02:37]} 14. Nxe5 {[%clk 0:02:06]}  Ng4 {[%clk 0:02:27]} 15. Bxh3 {[%clk 0:01:38]}  Ncxe5 {[%clk 0:02:25]} 16. Kg2 {[%clk 0:01:37]}  Qg6 {[%clk 0:01:43]} 17. fxe5 {[%clk 0:01:28]}  Qc6+ {[%clk 0:01:43]} 18. f3 {[%clk 0:01:28]}  Nxe5 {[%clk 0:01:43]} 19. Bf4 {[%clk 0:01:28]}  Rae8 {[%clk 0:01:42]} 20. Bxe5 {[%clk 0:01:25]}  Rxe5 {[%clk 0:01:42]} 21. Qd2 {[%clk 0:01:23]}  h5 {[%clk 0:01:40]} 22. Rbe1 {[%clk 0:01:19]}  Rfe8 {[%clk 0:01:38]} 23. Re4 {[%clk 0:01:18]}  g5 {[%clk 0:01:37]} 24. Kg1 {[%clk 0:01:14]}  g4 {[%clk 0:01:34]} 25. Bg2 {[%clk 0:01:12]}  Rxe4 {[%clk 0:01:35]} 26. fxe4 {[%clk 0:01:12]}  Qd6 {[%clk 0:01:30]} 27. Qg5+ {[%clk 0:01:10]} 1-0


[Site "https://www.chess.com"]